[Event "*** Titled Tuesday Blitz"]
[Site "Chess.com"]
[Date "2020.04.28"]
[Round "4"]
[White "CSB7"]
[Black "Nikolakis2014"]
[Result "0-1"]
[WhiteElo "2498"]
[BlackElo "2713"]
[TimeControl "180+1"]
[EndTime "10:40:50 PDT"]
[Termination "Nikolakis2014 won by resignation"]

1. e4 {[%clk 0:03:00.9]} 1... c5 {[%clk 0:02:59]} 2. Nf3 {[%clk 0:03:01.2]} 2...
Nc6 {[%clk 0:02:57]} 3. Nc3 {[%clk 0:02:58.2]} 3... e5 {[%clk 0:02:55.8]} 4. Bc4
{[%clk 0:02:57.3]} 4... h6 {[%clk 0:02:54.4]} 5. d3 {[%clk 0:02:53.8]} 5... d6
{[%clk 0:02:54.6]} 6. Nd2 {[%clk 0:02:51.4]} 6... g6 {[%clk 0:02:54.8]} 7. Nf1
{[%clk 0:02:51.5]} 7... Bg7 {[%clk 0:02:55]} 8. Ne3 {[%clk 0:02:51.8]} 8... Nf6
{[%clk 0:02:55]} 9. a3 {[%clk 0:02:47.2]} 9... O-O {[%clk 0:02:54.2]} 10. O-O
{[%clk 0:02:47.6]} 10... Be6 {[%clk 0:02:51]} 11. Ned5 {[%clk 0:02:42.3]} 11...
Kh7 {[%clk 0:02:42.3]} 12. Rb1 {[%clk 0:02:32.3]} 12... Nd4 {[%clk 0:02:35.7]}
13. Be3 {[%clk 0:02:24.4]} 13... Rc8 {[%clk 0:02:33.8]} 14. Nxf6+ {[%clk
0:02:08.2]} 14... Bxf6 {[%clk 0:02:31.1]} 15. Nd5 {[%clk 0:02:07]} 15... b5
{[%clk 0:02:17.1]} 16. Ba2 {[%clk 0:02:02.7]} 16... Bg7 {[%clk 0:02:16]} 17. c3
{[%clk 0:01:56.6]} 17... Nc6 {[%clk 0:02:13.4]} 18. b4 {[%clk 0:01:54.5]} 18...
cxb4 {[%clk 0:02:11.6]} 19. axb4 {[%clk 0:01:30.7]} 19... Ne7 {[%clk 0:02:11.5]}
20. Nxe7 {[%clk 0:01:01.2]} 20... Qxe7 {[%clk 0:02:09.9]} 21. Bxe6 {[%clk
0:01:01.3]} 21... Qxe6 {[%clk 0:01:58.7]} 22. Qb3 {[%clk 0:01:00.9]} 22... Qd7
{[%clk 0:01:46.7]} 23. Ra1 {[%clk 0:00:39.1]} 23... Rc7 {[%clk 0:01:46.1]} 24.
Ra3 {[%clk 0:00:38.7]} 24... f5 {[%clk 0:01:40]} 25. f3 {[%clk 0:00:26.6]} 25...
Rd8 {[%clk 0:01:07.9]} 26. Rfa1 {[%clk 0:00:23.3]} 26... d5 {[%clk 0:01:07.7]}
27. Rxa7 {[%clk 0:00:09.1]} 27... d4 {[%clk 0:00:56]} 28. Rxc7 {[%clk
0:00:07.6]} 28... Qxc7 {[%clk 0:00:56.2]} 29. cxd4 {[%clk 0:00:08.1]} 29... exd4
{[%clk 0:00:56.4]} 30. Bf2 {[%clk 0:00:07.4]} 30... Be5 {[%clk 0:00:56.1]} 31.
g3 {[%clk 0:00:06.6]} 31... fxe4 {[%clk 0:00:55.8]} 32. fxe4 {[%clk 0:00:07.5]}
32... Rf8 {[%clk 0:00:55.3]} 33. Qb2 {[%clk 0:00:07.4]} 33... Qd7 {[%clk
0:00:48.6]} 34. Rc1 {[%clk 0:00:07.4]} 34... Qg4 {[%clk 0:00:41.2]} 35. Bxd4
{[%clk 0:00:02.6]} 35... Bb8 {[%clk 0:00:22.4]} 36. Bf2 {[%clk 0:00:02.3]} 36...
h5 {[%clk 0:00:22.1]} 37. d4 {[%clk 0:00:02.8]} 37... h4 {[%clk 0:00:22]} 38.
Qc3 {[%clk 0:00:03.3]} 38... hxg3 {[%clk 0:00:18.5]} 39. hxg3 {[%clk 0:00:04.2]}
39... Rf3 {[%clk 0:00:18.2]} 40. Qe1 {[%clk 0:00:03.3]} 40... Bxg3 {[%clk
0:00:18.2]} 41. Bxg3 {[%clk 0:00:01.6]} 41... Rxg3+ {[%clk 0:00:18.2]} 42. Kf1
{[%clk 0:00:02.1]} 42... Rf3+ {[%clk 0:00:15.9]} 43. Ke2 {[%clk 0:00:02]} 43...
Qg2+ {[%clk 0:00:16.1]} 44. Kd1 {[%clk 0:00:02]} 44... Rd3+ {[%clk 0:00:16.2]}
0-1

[Event "*** Titled Tuesday Blitz"]
[Site "Chess.com"]
[Date "2020.04.28"]
[Round "4"]
[White "Grootneus"]
[Black "ZEN-22"]
[Result "0-1"]
[WhiteElo "2191"]
[BlackElo "2492"]
[TimeControl "180+1"]
[EndTime "10:40:51 PDT"]
[Termination "ZEN-22 won on time"]

1. e4 {[%clk 0:03:00.9]} 1... d5 {[%clk 0:02:58.1]} 2. exd5 {[%clk 0:03:00.5]}
2... c6 {[%clk 0:02:59]} 3. dxc6 {[%clk 0:02:59.8]} 3... Nxc6 {[%clk 0:02:59]}
4. Bb5 {[%clk 0:02:59.5]} 4... Qd5 {[%clk 0:02:58.2]} 5. Bxc6+ {[%clk
0:02:49.3]} 5... Qxc6 {[%clk 0:02:57.4]} 6. Nf3 {[%clk 0:02:46.1]} 6... Qe4+
{[%clk 0:02:56.4]} 7. Qe2 {[%clk 0:02:44.5]} 7... Qxc2 {[%clk 0:02:55.5]} 8. Na3
{[%clk 0:02:44.2]} 8... Qc6 {[%clk 0:02:52.7]} 9. O-O {[%clk 0:02:42.6]} 9... a6
{[%clk 0:02:52.8]} 10. d4 {[%clk 0:02:42.1]} 10... e6 {[%clk 0:02:52.2]} 11. Ne5
{[%clk 0:02:41]} 11... Qd5 {[%clk 0:02:51.4]} 12. Nac4 {[%clk 0:02:40]} 12...
Qd8 {[%clk 0:02:48.1]} 13. Qh5 {[%clk 0:01:43.9]} 13... g6 {[%clk 0:02:43.9]}
14. Qf3 {[%clk 0:01:43.9]} 14... Nf6 {[%clk 0:02:43.2]} 15. Bg5 {[%clk
0:01:43.6]} 15... Bg7 {[%clk 0:02:39.4]} 16. Bxf6 {[%clk 0:01:37.6]} 16... Bxf6
{[%clk 0:02:30.8]} 17. Nd6+ {[%clk 0:01:37.1]} 17... Qxd6 {[%clk 0:02:29.6]} 18.
Qxf6 {[%clk 0:01:36.9]} 18... O-O {[%clk 0:02:30.2]} 19. Rad1 {[%clk 0:01:34.8]}
19... Qd8 {[%clk 0:02:28.8]} 20. Qf4 {[%clk 0:01:32.3]} 20... f6 {[%clk
0:02:23]} 21. Nf3 {[%clk 0:01:26.2]} 21... Bd7 {[%clk 0:02:22.6]} 22. d5 {[%clk
0:01:25.9]} 22... e5 {[%clk 0:02:20.4]} 23. Qc4 {[%clk 0:01:13.8]} 23... Bb5
{[%clk 0:02:19.5]} 24. Qb3 {[%clk 0:01:10.9]} 24... Bxf1 {[%clk 0:02:18.6]} 25.
Kxf1 {[%clk 0:01:11.8]} 25... Rf7 {[%clk 0:02:15.8]} 26. Nd2 {[%clk 0:01:10.2]}
26... Rc8 {[%clk 0:02:08.9]} 27. Ne4 {[%clk 0:01:05.5]} 27... f5 {[%clk
0:02:08.5]} 28. Nc3 {[%clk 0:00:56.1]} 28... b5 {[%clk 0:02:02.3]} 29. a4 {[%clk
0:00:40.4]} 29... Rc5 {[%clk 0:01:16.6]} 30. axb5 {[%clk 0:00:27.7]} 30... axb5
{[%clk 0:01:17.5]} 31. d6 {[%clk 0:00:28.1]} 31... Qd7 {[%clk 0:01:12.9]} 32.
Qb4 {[%clk 0:00:23.2]} 32... Rc4 {[%clk 0:00:59.9]} 33. Qxb5 {[%clk 0:00:13.5]}
33... Qxb5 {[%clk 0:00:59.2]} 34. Nxb5 {[%clk 0:00:14.4]} 34... Rd7 {[%clk
0:00:57.9]} 35. Nc3 {[%clk 0:00:10.8]} 35... Rc6 {[%clk 0:00:52.7]} 36. Nd5
{[%clk 0:00:09.1]} 36... Kf7 {[%clk 0:00:49.1]} 37. Ne7 {[%clk 0:00:08.2]} 37...
Rcxd6 {[%clk 0:00:48]} 38. Rxd6 {[%clk 0:00:05.9]} 38... Rxd6 {[%clk 0:00:48]}
39. Nc8 {[%clk 0:00:06.8]} 39... Rc6 {[%clk 0:00:45.6]} 40. Na7 {[%clk
0:00:06.2]} 40... Rb6 {[%clk 0:00:45.2]} 41. g3 {[%clk 0:00:04.3]} 41... Ke6
{[%clk 0:00:42.5]} 42. b4 {[%clk 0:00:03.9]} 42... Rxb4 {[%clk 0:00:40.1]} 43.
Nc6 {[%clk 0:00:04.5]} 43... Rb2 {[%clk 0:00:38.4]} 44. Na5 {[%clk 0:00:03.5]}
44... Rb4 {[%clk 0:00:36.7]} 45. Nc6 {[%clk 0:00:03.2]} 45... Rc4 {[%clk
0:00:35.9]} 46. Na5 {[%clk 0:00:02.1]} 46... Rc3 {[%clk 0:00:36]} 47. Nb7 {[%clk
0:00:01.6]} 47... Kd5 {[%clk 0:00:35.9]} 48. Nd8 {[%clk 0:00:01.8]} 48... Rc7
{[%clk 0:00:34.7]} 0-1

[Event "*** Titled Tuesday Blitz"]
[Site "Chess.com"]
[Date "2020.04.28"]
[Round "4"]
[White "Kingsman132"]
[Black "ChessMavenYeti"]
[Result "0-1"]
[WhiteElo "2414"]
[BlackElo "2185"]
[TimeControl "180+1"]
[EndTime "10:40:51 PDT"]
[Termination "ChessMavenYeti won on time"]

1. d4 {[%clk 0:03:00.9]} 1... e6 {[%clk 0:02:59.4]} 2. c4 {[%clk 0:03:00.4]}
2... Nf6 {[%clk 0:02:59.8]} 3. Nc3 {[%clk 0:02:59.6]} 3... Bb4 {[%clk
0:02:59.5]} 4. Qc2 {[%clk 0:02:59.5]} 4... d5 {[%clk 0:02:59.1]} 5. cxd5 {[%clk
0:02:51.7]} 5... Qxd5 {[%clk 0:03:00]} 6. Nf3 {[%clk 0:02:50]} 6... Qf5 {[%clk
0:02:58.8]} 7. Qb3 {[%clk 0:02:47]} 7... a5 {[%clk 0:02:56.5]} 8. e3 {[%clk
0:02:37.9]} 8... Qg6 {[%clk 0:02:47.4]} 9. a3 {[%clk 0:02:32.5]} 9... Bd6 {[%clk
0:02:46.2]} 10. Nb5 {[%clk 0:02:15.7]} 10... Nc6 {[%clk 0:02:37.7]} 11. Nxd6+
{[%clk 0:02:10.9]} 11... cxd6 {[%clk 0:02:36.7]} 12. Bd2 {[%clk 0:02:05.3]}
12... a4 {[%clk 0:02:19.6]} 13. Qd3 {[%clk 0:02:02.1]} 13... Ne4 {[%clk
0:02:17.4]} 14. Rc1 {[%clk 0:01:58]} 14... d5 {[%clk 0:02:14.2]} 15. Qc2 {[%clk
0:01:53.1]} 15... O-O {[%clk 0:02:08.2]} 16. h4 {[%clk 0:01:50]} 16... h6 {[%clk
0:02:04.2]} 17. h5 {[%clk 0:01:48.6]} 17... Qf6 {[%clk 0:02:00]} 18. Bd3 {[%clk
0:01:41.1]} 18... Nxd2 {[%clk 0:01:51.3]} 19. Qxd2 {[%clk 0:01:39.6]} 19... Bd7
{[%clk 0:01:50.9]} 20. O-O {[%clk 0:01:35.5]} 20... e5 {[%clk 0:01:45.8]} 21.
dxe5 {[%clk 0:01:29.4]} 21... Nxe5 {[%clk 0:01:46.7]} 22. Nxe5 {[%clk
0:01:29.8]} 22... Qxe5 {[%clk 0:01:46.6]} 23. Be2 {[%clk 0:01:29.5]} 23... Bc6
{[%clk 0:01:43.7]} 24. Bf3 {[%clk 0:01:28.4]} 24... Ra6 {[%clk 0:01:37.7]} 25.
Rfd1 {[%clk 0:01:25.9]} 25... Rb6 {[%clk 0:01:36.2]} 26. Qd4 {[%clk 0:01:20.5]}
26... Qxd4 {[%clk 0:01:30.9]} 27. Rxd4 {[%clk 0:01:20.1]} 27... Rxb2 {[%clk
0:01:28.9]} 28. Bxd5 {[%clk 0:01:19.9]} 28... Bxd5 {[%clk 0:01:22.2]} 29. Rxd5
{[%clk 0:01:19.8]} 29... Rb3 {[%clk 0:01:20.3]} 30. Ra1 {[%clk 0:01:17]} 30...
Rc8 {[%clk 0:01:18.7]} 31. Ra5 {[%clk 0:01:13.4]} 31... b5 {[%clk 0:01:15.9]}
32. Kf1 {[%clk 0:01:11.5]} 32... Rc2 {[%clk 0:01:13.9]} 33. Ra8+ {[%clk
0:00:53.5]} 33... Kh7 {[%clk 0:01:13.3]} 34. Rb8 {[%clk 0:00:45.1]} 34... Rbb2
{[%clk 0:01:11.9]} 35. Rd1 {[%clk 0:00:36.1]} 35... Rxf2+ {[%clk 0:01:11.1]} 36.
Kg1 {[%clk 0:00:36.2]} 36... Rxg2+ {[%clk 0:01:11]} 37. Kf1 {[%clk 0:00:35.7]}
37... Rbf2+ {[%clk 0:01:07.9]} 38. Ke1 {[%clk 0:00:35.8]} 38... Ra2 {[%clk
0:01:06.9]} 39. Kf1 {[%clk 0:00:34]} 39... Rh2 {[%clk 0:01:05.7]} 40. Kg1 {[%clk
0:00:33.6]} 40... Rag2+ {[%clk 0:01:04.9]} 41. Kf1 {[%clk 0:00:33.5]} 41... Rd2
{[%clk 0:01:05.3]} 42. Rxd2 {[%clk 0:00:29.8]} 42... Rxd2 {[%clk 0:01:06.2]} 43.
Rxb5 {[%clk 0:00:30.2]} 43... Rd3 {[%clk 0:01:06]} 44. Rb7 {[%clk 0:00:16.7]}
44... Rxe3 {[%clk 0:01:03.9]} 45. Rxf7 {[%clk 0:00:16]} 45... Rxa3 {[%clk
0:01:03.8]} 46. Ra7 {[%clk 0:00:14.9]} 46... Ra2 {[%clk 0:01:03.7]} 47. Ra5
{[%clk 0:00:13.7]} 47... g5 {[%clk 0:01:01.4]} 48. hxg6+ {[%clk 0:00:09.4]}
48... Kxg6 {[%clk 0:01:01.3]} 49. Ke1 {[%clk 0:00:10]} 49... h5 {[%clk
0:01:01.2]} 50. Kf1 {[%clk 0:00:09.5]} 50... h4 {[%clk 0:01:01.1]} 51. Kg1
{[%clk 0:00:09.7]} 51... a3 {[%clk 0:00:58.1]} 52. Kh1 {[%clk 0:00:08.7]} 52...
Kf6 {[%clk 0:00:58]} 53. Kg1 {[%clk 0:00:08.5]} 53... h3 {[%clk 0:00:57.8]} 54.
Kh1 {[%clk 0:00:08.4]} 54... Ke6 {[%clk 0:00:57.9]} 55. Kg1 {[%clk 0:00:06.4]}
55... Kd6 {[%clk 0:00:57.9]} 56. Kh1 {[%clk 0:00:05.3]} 56... Kc6 {[%clk
0:00:58.1]} 57. Kg1 {[%clk 0:00:04.8]} 57... Kb6 {[%clk 0:00:58.2]} 58. Ra4
{[%clk 0:00:01.2]} 58... Kb5 {[%clk 0:00:58.2]} 0-1

[Event "*** Titled Tuesday Blitz"]
[Site "Chess.com"]
[Date "2020.04.28"]
[Round "4"]
[White "dvella"]
[Black "hazy13"]
[Result "0-1"]
[WhiteElo "1802"]
[BlackElo "2199"]
[TimeControl "180+1"]
[EndTime "10:40:52 PDT"]
[Termination "hazy13 won by checkmate"]

1. e4 {[%clk 0:03:00.9]} 1... c5 {[%clk 0:02:59.1]} 2. Nf3 {[%clk 0:03:00.8]}
2... g6 {[%clk 0:02:59.5]} 3. Bc4 {[%clk 0:02:55.6]} 3... Nc6 {[%clk 0:02:54]}
4. c3 {[%clk 0:02:55]} 4... e6 {[%clk 0:02:47.1]} 5. O-O {[%clk 0:02:54.7]} 5...
Bg7 {[%clk 0:02:44.3]} 6. d4 {[%clk 0:02:54.7]} 6... cxd4 {[%clk 0:02:45.2]} 7.
Nxd4 {[%clk 0:02:54.8]} 7... Nge7 {[%clk 0:02:39.4]} 8. Bg5 {[%clk 0:02:45.6]}
8... Nxd4 {[%clk 0:02:31.3]} 9. cxd4 {[%clk 0:02:40.8]} 9... h6 {[%clk
0:02:30.5]} 10. Bh4 {[%clk 0:02:33.5]} 10... g5 {[%clk 0:02:30.7]} 11. Bg3
{[%clk 0:02:33.7]} 11... d6 {[%clk 0:02:22.7]} 12. Nc3 {[%clk 0:02:31.6]} 12...
a6 {[%clk 0:02:20]} 13. e5 {[%clk 0:02:20.2]} 13... d5 {[%clk 0:02:12.7]} 14.
Bb3 {[%clk 0:02:17]} 14... Bd7 {[%clk 0:01:55.6]} 15. f4 {[%clk 0:02:13.1]}
15... Nf5 {[%clk 0:01:51.1]} 16. Be1 {[%clk 0:01:58.8]} 16... Ne3 {[%clk
0:01:42.6]} 17. Qh5 {[%clk 0:01:47.1]} 17... Nxf1 {[%clk 0:01:36.3]} 18. Kxf1
{[%clk 0:01:46.8]} 18... gxf4 {[%clk 0:01:31.6]} 19. Bh4 {[%clk 0:01:44.3]}
19... Qb6 {[%clk 0:01:22.4]} 20. Rd1 {[%clk 0:01:42.8]} 20... Bb5+ {[%clk
0:01:01.2]} 21. Kg1 {[%clk 0:01:37]} 21... Rc8 {[%clk 0:00:59.4]} 22. Kh1 {[%clk
0:01:36]} 22... Bc4 {[%clk 0:00:58.7]} 23. Ba4+ {[%clk 0:01:32.8]} 23... Kf8
{[%clk 0:00:50]} 24. Bf6 {[%clk 0:01:17.3]} 24... Qxb2 {[%clk 0:00:39.7]} 25.
Qg4 {[%clk 0:01:03.3]} 25... Rg8 {[%clk 0:00:30.6]} 26. Qf3 {[%clk 0:00:52.1]}
26... Bxa2 {[%clk 0:00:23.4]} 27. Bd7 {[%clk 0:00:50.5]} 27... Rxc3 {[%clk
0:00:21.7]} 28. Qxf4 {[%clk 0:00:44.9]} 28... Rc2 {[%clk 0:00:14.9]} 29. Rg1
{[%clk 0:00:39.6]} 29... Bc4 {[%clk 0:00:12]} 30. Bxe6 {[%clk 0:00:32.9]} 30...
fxe6 {[%clk 0:00:12.3]} 31. Bg5+ {[%clk 0:00:20.5]} 31... Ke8 {[%clk 0:00:12.2]}
32. Bxh6 {[%clk 0:00:19.8]} 32... Rf2 {[%clk 0:00:10.9]} 33. Qh4 {[%clk
0:00:18.6]} 33... Bxh6 {[%clk 0:00:10.4]} 34. Qh5+ {[%clk 0:00:18]} 34... Kd7
{[%clk 0:00:09.4]} 35. Qf7+ {[%clk 0:00:15.4]} 35... Kc6 {[%clk 0:00:07.9]} 36.
Qxg8 {[%clk 0:00:15.5]} 36... Be3 {[%clk 0:00:06.8]} 37. Qe8+ {[%clk 0:00:13.3]}
37... Kb6 {[%clk 0:00:06.7]} 38. Qd8+ {[%clk 0:00:13.1]} 38... Kb5 {[%clk
0:00:06.3]} 39. Qd7+ {[%clk 0:00:11]} 39... Kb4 {[%clk 0:00:06.1]} 40. Qxb7+
{[%clk 0:00:10.7]} 40... Kc3 {[%clk 0:00:06.5]} 41. Qc6 {[%clk 0:00:06.2]} 41...
Rc2 {[%clk 0:00:05.1]} 42. Qxe6 {[%clk 0:00:05.9]} 42... Bxg1 {[%clk 0:00:03.2]}
43. Qh3+ {[%clk 0:00:06.5]} 43... Kb4 {[%clk 0:00:03.2]} 44. Kxg1 {[%clk
0:00:06.5]} 44... Rc1# {[%clk 0:00:03.5]} 0-1

[Event "*** Titled Tuesday Blitz"]
[Site "Chess.com"]
[Date "2020.04.28"]
[Round "4"]
[White "Aleksandar-Topalov"]
[Black "Chuchofrio1"]
[Result "1-0"]
[WhiteElo "2501"]
[BlackElo "2221"]
[TimeControl "180+1"]
[EndTime "10:40:53 PDT"]
[Termination "Aleksandar-Topalov won by resignation"]

1. b3 {[%clk 0:03:00.9]} 1... f5 {[%clk 0:02:57.4]} 2. Bb2 {[%clk 0:03:00.5]}
2... Nf6 {[%clk 0:02:57.7]} 3. Bxf6 {[%clk 0:03:00.3]} 3... exf6 {[%clk
0:02:58.6]} 4. c4 {[%clk 0:03:00.4]} 4... g6 {[%clk 0:02:54.8]} 5. Nc3 {[%clk
0:03:00.6]} 5... Bg7 {[%clk 0:02:55]} 6. e3 {[%clk 0:03:01.2]} 6... d6 {[%clk
0:02:54.7]} 7. Nge2 {[%clk 0:03:01.3]} 7... O-O {[%clk 0:02:54.4]} 8. g3 {[%clk
0:03:01.7]} 8... Nc6 {[%clk 0:02:55]} 9. d4 {[%clk 0:03:00.9]} 9... Bd7 {[%clk
0:02:53.2]} 10. Bg2 {[%clk 0:03:01]} 10... Qe8 {[%clk 0:02:51.6]} 11. O-O {[%clk
0:02:59]} 11... h6 {[%clk 0:02:51.4]} 12. Nd5 {[%clk 0:02:59.1]} 12... Rc8
{[%clk 0:02:49.3]} 13. b4 {[%clk 0:02:53.9]} 13... b6 {[%clk 0:02:48.8]} 14. a4
{[%clk 0:02:48.8]} 14... Ne7 {[%clk 0:02:47.8]} 15. b5 {[%clk 0:02:47.2]} 15...
Be6 {[%clk 0:02:45.9]} 16. Qd3 {[%clk 0:02:39.3]} 16... Nxd5 {[%clk 0:02:43]}
17. cxd5 {[%clk 0:02:39.1]} 17... Bf7 {[%clk 0:02:41.9]} 18. Rfc1 {[%clk
0:02:33.6]} 18... Qd7 {[%clk 0:02:40.5]} 19. Rc6 {[%clk 0:02:25.7]} 19... Rfe8
{[%clk 0:02:38.3]} 20. Rac1 {[%clk 0:02:24.8]} 20... Re7 {[%clk 0:02:38.4]} 21.
Qb3 {[%clk 0:02:17.1]} 21... g5 {[%clk 0:02:35.4]} 22. Qc2 {[%clk 0:02:08.8]}
22... Bg6 {[%clk 0:02:23]} 23. Qd2 {[%clk 0:02:01.6]} 23... Kh7 {[%clk
0:02:21.6]} 24. a5 {[%clk 0:02:01.9]} 24... Ree8 {[%clk 0:02:11.5]} 25. Qc3
{[%clk 0:01:59.2]} 25... Re7 {[%clk 0:02:09.2]} 26. axb6 {[%clk 0:01:58.4]}
26... axb6 {[%clk 0:02:10.1]} 27. Rxb6 {[%clk 0:01:54.7]} 27... cxb6 {[%clk
0:02:01.9]} 28. Qxc8 {[%clk 0:01:54]} 28... Qxb5 {[%clk 0:02:02.1]} 29. Nc3
{[%clk 0:01:31.9]} 29... Qa5 {[%clk 0:01:39]} 30. Qc6 {[%clk 0:01:15.4]} 30...
Qa3 {[%clk 0:01:17.7]} 31. Nb5 {[%clk 0:01:14.5]} 31... Qa5 {[%clk 0:00:36.7]}
32. Nxd6 {[%clk 0:01:10.8]} 32... f4 {[%clk 0:00:35.8]} 33. e4 {[%clk
0:01:01.8]} 33... fxg3 {[%clk 0:00:32.3]} 34. hxg3 {[%clk 0:01:01.4]} 34... Qd2
{[%clk 0:00:29.9]} 35. Qc3 {[%clk 0:00:48.6]} 35... Qa2 {[%clk 0:00:19.5]} 36.
Qf3 {[%clk 0:00:28.5]} 36... Qd2 {[%clk 0:00:18.7]} 37. Rd1 {[%clk 0:00:25.7]}
37... Qb4 {[%clk 0:00:18.9]} 38. Nf5 {[%clk 0:00:25.6]} 38... Rd7 {[%clk
0:00:18.5]} 39. e5 {[%clk 0:00:20.6]} 39... fxe5 {[%clk 0:00:17.4]} 40. Nxg7
{[%clk 0:00:20.9]} 40... Kxg7 {[%clk 0:00:18.3]} 41. dxe5 {[%clk 0:00:21.3]}
41... Qc5 {[%clk 0:00:17.6]} 42. Qf6+ {[%clk 0:00:21.3]} 42... Kh7 {[%clk
0:00:17.4]} 43. e6 {[%clk 0:00:20.8]} 43... Re7 {[%clk 0:00:17.8]} 44. d6 {[%clk
0:00:19.7]} 44... Re8 {[%clk 0:00:18.1]} 45. d7 {[%clk 0:00:17]} 45... Rf8
{[%clk 0:00:14.4]} 46. d8=Q {[%clk 0:00:16.9]} 46... Rxf6 {[%clk 0:00:12.7]} 47.
Qxf6 {[%clk 0:00:17]} 47... Qc2 {[%clk 0:00:12.5]} 48. Rd7+ {[%clk 0:00:15.7]}
1-0

[Event "*** Titled Tuesday Blitz"]
[Site "Chess.com"]
[Date "2020.04.28"]
[Round "4"]
[White "DaggiGretarsson"]
[Black "MusicCityMaster"]
[Result "1/2-1/2"]
[WhiteElo "2441"]
[BlackElo "2257"]
[TimeControl "180+1"]
[EndTime "10:40:53 PDT"]
[Termination "Game drawn - insufficient material"]

1. d4 {[%clk 0:03:00.9]} 1... Nf6 {[%clk 0:02:59.3]} 2. c4 {[%clk 0:02:58.9]}
2... c5 {[%clk 0:02:59.8]} 3. d5 {[%clk 0:02:57.2]} 3... b5 {[%clk 0:03:00.4]}
4. cxb5 {[%clk 0:02:56.8]} 4... a6 {[%clk 0:03:00.9]} 5. bxa6 {[%clk 0:02:57]}
5... g6 {[%clk 0:03:00.6]} 6. Nc3 {[%clk 0:02:56.5]} 6... Bxa6 {[%clk
0:03:00.8]} 7. e4 {[%clk 0:02:55.6]} 7... Bxf1 {[%clk 0:03:00.6]} 8. Kxf1 {[%clk
0:02:55.7]} 8... d6 {[%clk 0:03:00.8]} 9. Nf3 {[%clk 0:02:55.5]} 9... Bg7 {[%clk
0:03:00.9]} 10. g3 {[%clk 0:02:55.3]} 10... O-O {[%clk 0:03:00.9]} 11. Kg2
{[%clk 0:02:55.2]} 11... Qb6 {[%clk 0:03:01]} 12. a4 {[%clk 0:02:54]} 12... Na6
{[%clk 0:03:00.7]} 13. Ra3 {[%clk 0:02:50.4]} 13... Nb4 {[%clk 0:02:59.4]} 14.
Qe2 {[%clk 0:02:46.3]} 14... Qb7 {[%clk 0:02:59.3]} 15. Rd1 {[%clk 0:02:43.3]}
15... Ra6 {[%clk 0:02:55]} 16. h3 {[%clk 0:02:40.2]} 16... e6 {[%clk 0:02:43.6]}
17. dxe6 {[%clk 0:02:34.5]} 17... fxe6 {[%clk 0:02:43.7]} 18. Bf4 {[%clk
0:02:16.2]} 18... d5 {[%clk 0:02:39.8]} 19. exd5 {[%clk 0:02:01.1]} 19... Nfxd5
{[%clk 0:02:38.2]} 20. Nxd5 {[%clk 0:01:38]} 20... exd5 {[%clk 0:02:37.4]} 21.
Qb5 {[%clk 0:01:34.7]} 21... Qxb5 {[%clk 0:02:08.8]} 22. axb5 {[%clk 0:01:34]}
22... Rb6 {[%clk 0:02:09]} 23. Rb3 {[%clk 0:01:20.8]} 23... d4 {[%clk
0:02:00.8]} 24. Bd2 {[%clk 0:01:08.9]} 24... Rxb5 {[%clk 0:01:33.3]} 25. Bxb4
{[%clk 0:01:07.8]} 25... Rfb8 {[%clk 0:01:28]} 26. Rc1 {[%clk 0:00:49.7]} 26...
Bf8 {[%clk 0:01:13.6]} 27. Rc4 {[%clk 0:00:44.7]} 27... Rxb4 {[%clk 0:01:09.2]}
28. Rbxb4 {[%clk 0:00:44.1]} 28... Rxb4 {[%clk 0:01:06.3]} 29. Rxb4 {[%clk
0:00:43.6]} 29... cxb4 {[%clk 0:01:06.3]} 30. b3 {[%clk 0:00:42.5]} 30... d3
{[%clk 0:01:01.9]} 31. Nd2 {[%clk 0:00:31.9]} 31... Bg7 {[%clk 0:01:00]} 32. Kf3
{[%clk 0:00:25.3]} 32... Bd4 {[%clk 0:00:59.8]} 33. Nf1 {[%clk 0:00:20.4]} 33...
Kf7 {[%clk 0:00:55.6]} 34. Ke4 {[%clk 0:00:12.3]} 34... Bxf2 {[%clk 0:00:52.7]}
35. Kxd3 {[%clk 0:00:12.4]} 35... Ke6 {[%clk 0:00:47.4]} 36. Kc4 {[%clk
0:00:11.1]} 36... Be1 {[%clk 0:00:47.5]} 37. g4 {[%clk 0:00:08.8]} 37... Ke5
{[%clk 0:00:45.5]} 38. Ne3 {[%clk 0:00:08.8]} 38... Ke4 {[%clk 0:00:43.5]} 39.
Nc2 {[%clk 0:00:08.4]} 39... Bd2 {[%clk 0:00:41.4]} 40. Nxb4 {[%clk 0:00:08.5]}
40... Kf3 {[%clk 0:00:39.3]} 41. Nd5 {[%clk 0:00:08.1]} 41... Kg3 {[%clk
0:00:38.4]} 42. Nf6 {[%clk 0:00:07.4]} 42... Kxh3 {[%clk 0:00:34.6]} 43. Nxh7
{[%clk 0:00:04.5]} 43... Kxg4 {[%clk 0:00:34.6]} 44. b4 {[%clk 0:00:04.8]} 44...
Bxb4 {[%clk 0:00:14.2]} 45. Kxb4 {[%clk 0:00:04.7]} 45... Kf5 {[%clk 0:00:13.3]}
46. Kc4 {[%clk 0:00:04.3]} 46... g5 {[%clk 0:00:12.1]} 47. Nxg5 {[%clk
0:00:03.6]} 1/2-1/2